bitfinex/quotes_BTCUSD_20240627
["timestamp","ask_amount","ask_price","bid_price","bid_amount"]
[1719488191935,5.60901785,61318.0,61317.0,0.0003163]
[1719488192155,5.62901785,61318.0,61317.0,0.0003163]
[1719488192861,4.44304185,61318.0,61317.0,0.2370163]
[1719488193123,4.09559085,61318.0,61317.0,0.2370163]
[1719488194079,4.09359085,61318.0,61317.0,0.2370163]
[1719488194283,4.09559085,61318.0,61317.0,0.2370163]
[1719488195294,3.769119,61318.0,61317.0,0.3090877]
[1719488195475,1.82662706,61318.0,61317.0,0.3090877]
[1719488195893,1.82746706,61318.0,61317.0,0.3090877]
[1719488196133,1.37057206,61318.0,61317.0,0.3090877]
[1719488196309,2.18284606,61318.0,61317.0,0.3090877]
[1719488196512,2.18284606,61318.0,61317.0,0.30878385]
[1719488196513,2.17884606,61318.0,61317.0,0.30878385]
[1719488196915,2.18185321,61318.0,61317.0,0.30878385]
[1719488197768,2.18215706,61318.0,61317.0,0.30878385]
[1719488198311,2.06000585,61318.0,61317.0,0.30878385]
[1719488198827,2.15520585,61318.0,61317.0,0.30878385]
[1719488204411,2.14428885,61318.0,61317.0,0.30878385]
[1719488204657,2.007951,61318.0,61317.0,0.30878385]
[1719488204862,1.750894,61318.0,61317.0,0.30878385]
[1719488205073,1.224014,61318.0,61317.0,0.30878385]
[1719488205692,1.182014,61318.0,61317.0,0.30878385]
[1719488205912,0.92126,61318.0,61317.0,0.30878385]
[1719488206670,0.92126,61318.0,61317.0,0.30848]
[1719488207056,0.92126,61318.0,61317.0,0.31410595]
[1719488208950,0.94683754,61318.0,61317.0,0.31410595]
[1719488209194,0.94683754,61318.0,61317.0,0.30848]
[1719488209428,0.94683754,61318.0,61317.0,0.31410595]
[1719488212249,0.13141754,61318.0,61317.0,0.49614108]
[1719488212460,0.03141754,61318.0,61317.0,0.49614108]
[1719488213559,0.02841754,61318.0,61317.0,0.49614108]
[1719488214074,0.02841754,61318.0,61317.0,0.51014108]
[1719488214476,0.02641754,61318.0,61317.0,0.51014108]
[1719488214931,0.02641754,61318.0,61317.0,0.52414108]
[1719488216748,0.02641754,61318.0,61317.0,0.52383723]
[1719488218619,0.02641754,61318.0,61317.0,0.72383723]
[1719488219198,0.02641754,61318.0,61317.0,0.52383723]
[1719488219580,0.02641754,61318.0,61317.0,0.72383723]
[1719488220424,0.02641754,61318.0,61317.0,0.52383723]
[1719488222174,0.02641754,61318.0,61317.0,0.72383723]
[1719488222408,0.02641754,61318.0,61317.0,0.52383723]
[1719488222785,0.02641754,61318.0,61317.0,0.72383723]
[1719488222993,0.02641754,61318.0,61317.0,0.81903723]
[1719488226162,0.02641754,61318.0,61317.0,1.18212323]
[1719488226748,0.02641754,61318.0,61317.0,1.18181938]
[1719488227940,0.02641754,61318.0,61317.0,1.01873338]
[1719488228336,0.02641754,61318.0,61317.0,1.18181938]
[1719488228540,0.02641754,61318.0,61317.0,1.01873338]
[1719488228872,0.02641754,61318.0,61317.0,1.18181938]
[1719488229076,0.02641754,61318.0,61317.0,1.18274338]
[1719488229408,0.00084,61322.0,61321.0,0.49176755]
[1719488229635,0.00084,61322.0,61321.0,1.91808653]
[1719488229835,0.00084,61322.0,61321.0,1.61252875]
[1719488230042,0.00084,61322.0,61321.0,1.70772875]
[1719488230644,0.00084,61322.0,61321.0,2.03388075]
[1719488230846,0.00084,61329.0,61328.0,0.73236755]
[1719488231054,0.00084,61329.0,61328.0,1.18990653]
[1719488231390,0.00429039,61334.0,61333.0,0.33236755]
[1719488231523,0.00429039,61334.0,61333.0,0.58990653]
[1719488231709,0.00429039,61334.0,61333.0,0.59548588]
[1719488232474,0.00429039,61334.0,61333.0,0.79548588]
[1719488232663,0.0100019,61340.0,61339.0,0.65479555]
[1719488232864,0.0100019,61340.0,61339.0,1.58329399]
[1719488233071,0.0100019,61340.0,61339.0,1.58886052]
[1719488234251,0.0100019,61340.0,61339.0,1.91491652]
[1719488234625,0.0100019,61340.0,61339.0,2.05741652]
[1719488235281,0.0100019,61340.0,61339.0,2.08541652]
[1719488235732,0.0100019,61340.0,61339.0,2.07141652]
[1719488236254,0.0100019,61340.0,61339.0,1.86572037]
[1719488236652,0.0100019,61340.0,61339.0,2.08511267]
[1719488238220,0.0100019,61340.0,61339.0,1.18866921]
[1719488238520,0.0100019,61340.0,61339.0,1.35169721]
[1719488239956,0.0100019,61340.0,61339.0,1.67775321]
[1719488240182,0.0100019,61340.0,61339.0,1.81325757]
[1719488240387,0.0100019,61340.0,61339.0,1.57555757]
[1719488240559,0.0100019,61340.0,61339.0,1.81325757]
[1719488241279,0.0100019,61340.0,61339.0,1.81325769]
[1719488241619,0.0100019,61340.0,61339.0,2.13931369]
[1719488243129,0.0100019,61340.0,61339.0,2.33931369]
[1719488243537,0.0100019,61340.0,61339.0,2.3393105]
[1719488244418,0.0100019,61340.0,61339.0,2.1016105]
[1719488244619,0.0100019,61340.0,61339.0,2.10161338]
[1719488245620,0.0100019,61340.0,61339.0,1.28647338]
[1719488246024,0.0100019,61340.0,61339.0,1.44950138]
[1719488246432,0.0100019,61340.0,61339.0,1.28647338]
[1719488246648,0.0100019,61340.0,61339.0,1.08616938]
[1719488246849,0.0100019,61340.0,61339.0,1.08617064]
[1719488247291,0.0100019,61340.0,61339.0,1.08617812]
[1719488247445,0.0100019,61340.0,61339.0,0.86508423]
[1719488247640,0.0100019,61340.0,61339.0,0.72957132]
[1719488248052,0.0100019,61340.0,61339.0,0.92957132]
[1719488248454,0.0100019,61340.0,61339.0,1.0650828]
[1719488249186,0.0100019,61340.0,61339.0,1.4281108]
[1719488249361,0.0100019,61340.0,61339.0,1.4511022]
[1719488249565,0.0100019,61340.0,61339.0,1.7771582]
[1719488250106,0.0100019,61340.0,61339.0,1.4511022]
[1719488250785,0.0100019,61340.0,61339.0,0.6244742]
[1719488250990,0.0100019,61340.0,61339.0,0.62448323]
[1719488251146,0.0100019,61340.0,61339.0,0.48897132]
[1719488251949,0.0100019,61340.0,61339.0,0.47497132]
[1719488252153,0.0100019,61340.0,61339.0,0.61048814]
[1719488252352,0.0100019,61340.0,61339.0,0.46097132]
[1719488252594,0.0100019,61340.0,61339.0,0.47497132]
[1719488252832,0.0100019,61340.0,61339.0,0.48897132]
[1719488253018,0.0100019,61340.0,61339.0,0.27497132]
[1719488253223,0.0100019,61340.0,61339.0,0.41048806]
[1719488253428,0.0100019,61340.0,61339.0,0.27497132]
[1719488253600,0.0100019,61340.0,61339.0,0.28897132]
[1719488254236,0.0100019,61340.0,61339.0,0.42448782]
[1719488254467,0.0100019,61340.0,61339.0,0.62448782]
[1719488254915,0.0100019,61340.0,61339.0,0.61048782]
[1719488255118,0.0100019,61340.0,61339.0,1.22988782]
[1719488255321,0.0100019,61340.0,61339.0,1.24388782]
[1719488255467,0.0100019,61340.0,61339.0,1.44391582]
[1719488255684,0.0100019,61340.0,61339.0,1.42991582]
[1719488256089,0.0100019,61340.0,61339.0,1.44391582]
[1719488256345,0.0100019,61340.0,61339.0,1.42991582]
[1719488256691,0.0100019,61340.0,61339.0,1.44391582]
[1719488257308,0.0100019,61340.0,61339.0,1.14537132]
[1719488257584,0.0100019,61340.0,61339.0,1.26687184]
[1719488257797,0.0100019,61340.0,61339.0,1.44389961]
[1719488258300,0.0100019,61340.0,61339.0,1.44389983]
[1719488258648,0.0100019,61340.0,61339.0,0.85787183]
[1719488259682,0.0100019,61340.0,61339.0,1.05787183]
[1719488259856,0.0100019,61340.0,61339.0,1.25787183]
[1719488260701,0.0100019,61340.0,61339.0,1.05788099]
[1719488260968,0.0100019,61340.0,61339.0,1.25880499]
[1719488261171,0.0108419,61340.0,61339.0,1.25880499]
[1719488261497,0.0108419,61340.0,61339.0,0.85880499]
[1719488261708,0.0108419,61340.0,61339.0,0.62540499]
[1719488262301,0.0108419,61340.0,61339.0,0.48989532]
[1719488262838,0.0108419,61340.0,61339.0,0.82542126]
[1719488263047,0.0108419,61340.0,61339.0,1.25882126]
[1719488263872,1.68394258,61350.0,61349.0,0.0911597]
[1719488264099,1.68394258,61350.0,61349.0,0.25349868]
[1719488264340,1.38604239,61350.0,61349.0,0.27884855]
[1719488265161,1.38604239,61350.0,61349.0,0.29979497]
[1719488265752,1.38604239,61350.0,61349.0,0.31379497]
[1719488265963,1.71204039,61350.0,61349.0,0.31379497]
[1719488266766,1.38604239,61350.0,61349.0,0.31379497]
[1719488266987,1.22304339,61350.0,61349.0,0.31379497]
[1719488267555,1.22304339,61350.0,61349.0,0.2884451]
[1719488271338,1.22304339,61350.0,61349.0,0.10640997]
[1719488271339,2.92613439,61350.0,61349.0,0.10640997]
[1719488271669,2.92613439,61350.0,61349.0,0.09946355]
[1719488272278,3.02643824,61350.0,61349.0,0.09946355]
[1719488272502,3.02613439,61350.0,61349.0,0.08546355]
[1719488272744,3.12123439,61350.0,61349.0,0.08546355]
[1719488272877,3.12153824,61350.0,61349.0,0.09346355]
[1719488273218,3.12153824,61350.0,61349.0,0.07146355]
[1719488273425,3.12153824,61350.0,61349.0,0.08046355]
[1719488273629,3.12153824,61350.0,61349.0,0.08846355]
[1719488273984,3.12153824,61350.0,61349.0,0.08046355]
[1719488274421,3.12153824,61350.0,61349.0,0.08846355]
[1719488274642,3.02643824,61350.0,61349.0,0.08846355]
[1719488274860,3.02643824,61350.0,61349.0,0.07146355]
[1719488274861,3.02609244,61350.0,61349.0,0.07146355]
[1719488275063,3.02609244,61350.0,61349.0,0.07946355]
[1719488275064,3.14829511,61350.0,61349.0,0.07946355]
[1719488275306,3.02609244,61350.0,61349.0,0.08846355]
[1719488275485,3.02609244,61350.0,61349.0,0.08046355]
[1719488275688,3.02609244,61350.0,61349.0,0.09146355]
[1719488276074,3.02609244,61350.0,61349.0,0.08046355]
[1719488276472,3.02609244,61350.0,61349.0,0.07946355]
[1719488276697,3.02609244,61350.0,61349.0,0.07146355]
[1719488276903,3.02609244,61350.0,61349.0,0.08146355]
[1719488277304,3.02609244,61350.0,61349.0,0.07146355]
[1719488277535,3.14806624,61350.0,61349.0,0.07146355]
[1719488277708,3.02609244,61350.0,61349.0,0.08046355]
[1719488278090,3.02609244,61350.0,61349.0,0.08946355]
[1719488278292,3.02609244,61350.0,61349.0,0.08046355]
[1719488278498,3.02609244,61350.0,61349.0,0.09046355]
[1719488279132,3.02609244,61350.0,61349.0,0.08146355]
[1719488279333,3.02609244,61350.0,61349.0,0.09246355]
[1719488279952,3.02609244,61350.0,61349.0,0.08246355]
[1719488280623,3.02609244,61350.0,61349.0,0.09146355]
[1719488281586,3.02609244,61350.0,61349.0,0.08246355]
[1719488281784,3.05165669,61350.0,61349.0,0.08246355]
[1719488281986,3.05165669,61350.0,61349.0,0.09246355]
[1719488284669,3.7713934,61350.0,61349.0,0.021]
[1719488284872,3.7913934,61350.0,61349.0,0.021]
[1719488285838,3.7913934,61350.0,61349.0,0.01]
[1719488286017,3.7913934,61350.0,61349.0,0.013]
[1719488286426,3.7913934,61350.0,61349.0,0.01]
[1719488286627,1.141066,61346.0,61345.0,0.07146355]
[1719488286865,1.80348885,61346.0,61345.0,0.07146355]
[1719488287023,1.14138785,61345.0,61344.0,0.07146355]
[1719488287354,2.04131185,61345.0,61344.0,0.07146355]
[1719488287505,2.76393685,61345.0,61344.0,0.07146355]
[1719488288344,2.88105499,61345.0,61344.0,0.07146355]
[1719488288691,2.90105499,61345.0,61344.0,0.07146355]
[1719488288807,2.64325499,61345.0,61344.0,0.07146355]
[1719488289189,2.88105499,61345.0,61344.0,0.07146355]
[1719488289385,2.76393685,61345.0,61344.0,0.07146355]
[1719488289722,2.52613685,61345.0,61344.0,0.07146355]
[1719488289924,1.7917984,61345.0,61344.0,0.08046355]
[1719488290133,1.56741185,61345.0,61344.0,0.09046355]
[1719488291412,1.567108,61345.0,61344.0,0.09046355]
[1719488291612,1.56741185,61345.0,61344.0,0.09046355]
[1719488291913,1.567108,61345.0,61344.0,0.09046355]
[1719488292330,1.56741185,61345.0,61344.0,0.09046355]
[1719488292505,1.567108,61345.0,61344.0,0.09138755]
[1719488292706,1.58566153,61345.0,61344.0,0.09138755]
[1719488292913,1.57750153,61345.0,61344.0,0.09138755]
[1719488293937,1.57719768,61345.0,61344.0,0.09138755]
[1719488294743,1.57719768,61345.0,61344.0,0.0904918]
[1719488294915,1.25147753,61345.0,61344.0,0.0904918]
[1719488297517,1.25117368,61345.0,61344.0,0.0904918]
[1719488297718,1.25147753,61345.0,61344.0,0.0904918]
[1719488298268,1.25117368,61345.0,61344.0,0.0904918]
[1719488298497,1.25117368,61345.0,61344.0,0.1951918]
[1719488298670,1.25147753,61345.0,61344.0,0.0904918]
[1719488302795,1.34657753,61345.0,61344.0,0.0904918]
[1719488306615,1.45107753,61345.0,61344.0,0.0904918]
[1719488307258,1.57325489,61345.0,61344.0,0.0904918]
[1719488308154,1.69513393,61345.0,61344.0,0.0904918]
[1719488309558,1.67260153,61345.0,61344.0,0.0904918]
[1719488309763,1.40439985,61345.0,61344.0,0.0904918]
[1719488309966,1.33648785,61345.0,61344.0,0.0904918]
[1719488311296,1.24138785,61345.0,61344.0,0.0904918]
[1719488311562,1.36361238,61345.0,61344.0,0.0904918]
[1719488311740,1.45871238,61345.0,61344.0,0.3391918]
[1719488311891,1.59148638,61345.0,61344.0,0.0904918]
[1719488313245,1.46926185,61345.0,61344.0,0.0904918]
[1719488313621,1.373858,61345.0,61344.0,0.0904918]
[1719488313830,0.91506,61345.0,61344.0,0.0904918]
[1719488315031,0.263012,61345.0,61344.0,0.54564232]
[1719488315235,0.263012,61345.0,61344.0,0.56533847]
[1719488315458,0.263012,61345.0,61344.0,0.55309869]
[1719488315624,1.22353759,61350.0,61349.0,0.0705678]
[1719488315828,1.22353759,61350.0,61349.0,0.58260639]
[1719488316110,0.94885893,61350.0,61349.0,0.5703581]
[1719488316237,0.94885893,61350.0,61349.0,0.48905464]
[1719488316919,0.94885893,61350.0,61349.0,0.49805464]
[1719488317089,1.11185793,61350.0,61349.0,0.49805464]
[1719488317324,1.11185793,61350.0,61349.0,0.48905464]
[1719488317522,1.21185793,61350.0,61349.0,0.48905464]
[1719488317714,1.21185793,61350.0,61349.0,0.50305464]
[1719488317915,1.21185793,61350.0,61349.0,0.49560678]
[1719488318049,1.21185793,61350.0,61349.0,0.50305464]
[1719488318263,2.19015578,61350.0,61349.0,0.09201566]
[1719488318653,2.19015578,61350.0,61349.0,0.0935678]
[1719488318854,2.18415578,61350.0,61349.0,0.0935678]
[1719488319306,2.18385193,61350.0,61349.0,0.0935678]
[1719488319512,2.18415578,61350.0,61349.0,0.0935678]
[1719488319721,2.18415578,61350.0,61349.0,0.0845678]
[1719488319920,0.96841996,61350.0,61349.0,0.51530293]
[1719488320121,0.96841996,61350.0,61349.0,0.52275079]
[1719488320345,0.94285893,61350.0,61349.0,0.53675079]
[1719488320890,0.94285893,61350.0,61349.0,0.72275079]
[1719488321351,0.94285893,61350.0,61349.0,0.73675079]
[1719488322027,0.94285893,61350.0,61349.0,1.67255479]
[1719488322190,0.94285893,61350.0,61349.0,2.01255779]
[1719488322774,0.94285893,61350.0,61349.0,1.77475779]
[1719488322974,0.94285893,61350.0,61349.0,1.76075779]
[1719488323689,0.94285893,61350.0,61349.0,1.57475779]
[1719488324037,0.94285893,61350.0,61349.0,1.77475779]
[1719488324242,0.94285893,61350.0,61349.0,1.57475779]
[1719488324446,0.94285893,61350.0,61349.0,1.77475779]
[1719488324644,0.94285893,61350.0,61349.0,1.57568179]
[1719488325025,0.94285893,61350.0,61349.0,0.53767479]
[1719488330243,0.94285893,61350.0,61349.0,0.51797864]
[1719488330444,1.10585793,61350.0,61349.0,0.26927864]
[1719488331025,0.94285893,61350.0,61349.0,0.2694213]
[1719488331511,1.75815778,61350.0,61349.0,0.10708232]
[1719488331782,1.99095393,61350.0,61349.0,0.10708232]
[1719488331990,2.41725578,61350.0,61349.0,0.0994918]
[1719488332182,2.41725578,61350.0,61349.0,0.028924]
[1719488332386,2.81996678,61350.0,61349.0,0.028924]
[1719488332587,2.81996678,61350.0,61349.0,0.014924]
[1719488332940,2.81996678,61350.0,61349.0,0.028924]
[1719488333395,2.81996678,61350.0,61349.0,0.014924]
[1719488333599,2.81996678,61350.0,61349.0,0.000924]
[1719488333802,2.98230049,61350.0,61349.0,0.000924]
[1719488334004,3.00230049,61350.0,61349.0,0.014924]
[1719488334161,3.02571095,61350.0,61349.0,0.014924]
[1719488334366,3.02571095,61350.0,61349.0,0.000924]
[1719488334562,3.02571095,61350.0,61349.0,0.005924]
[1719488334987,3.02571095,61350.0,61349.0,0.010924]
[1719488335686,2.84337724,61350.0,61349.0,0.010924]
[1719488335903,2.81996678,61350.0,61349.0,0.005924]
[1719488336454,2.81996678,61350.0,61349.0,0.010924]
[1719488337191,2.81996678,61350.0,61349.0,0.005924]
[1719488337366,2.37961278,61350.0,61349.0,0.0814918]
[1719488337619,2.32999993,61350.0,61349.0,0.0814918]
[1719488337807,2.18415578,61350.0,61349.0,0.0814918]
[1719488338058,1.85785393,61350.0,61349.0,0.0814918]
[1719488340284,1.53185593,61350.0,61349.0,0.24383078]
[1719488340411,1.20585793,61350.0,61349.0,0.24383078]
[1719488341087,1.53185593,61350.0,61349.0,0.24383078]
[1719488342291,1.22797998,61350.0,61349.0,0.24383078]
[1719488342492,1.22797998,61350.0,61349.0,0.27840622]
[1719488342493,0.90198198,61350.0,61349.0,0.27840622]
[1719488342860,0.90198198,61350.0,61349.0,0.28602271]
[1719488343507,1.22797998,61350.0,61349.0,0.28602271]
[1719488344028,0.63898298,61350.0,61349.0,0.30571886]
[1719488344165,0.63898298,61350.0,61349.0,0.54951886]
[1719488345155,0.63898298,61350.0,61349.0,0.54451886]
[1719488345288,0.63898298,61350.0,61349.0,0.54951886]
[1719488345498,0.63898298,61350.0,61349.0,0.51494342]
[1719488345724,0.63898298,61350.0,61349.0,0.49524727]
[1719488345950,0.63898298,61350.0,61349.0,0.49024727]
[1719488346129,0.63898298,61350.0,61349.0,0.50994342]
[1719488346332,0.63898298,61350.0,61349.0,0.49024727]
[1719488346493,0.63898298,61350.0,61349.0,0.49524727]
[1719488347030,0.63898298,61350.0,61349.0,0.48524727]
[1719488347245,0.63898298,61350.0,61349.0,0.51324727]
[1719488347640,0.6387868,61350.0,61349.0,0.51324727]
[1719488352916,0.6387868,61350.0,61349.0,0.53294342]
[1719488354730,0.6387868,61350.0,61349.0,0.51324727]
[1719488355310,0.6387868,61350.0,61349.0,0.52324727]
[1719488355730,1.1277838,61350.0,61349.0,0.26944727]
[1719488356025,1.12808765,61350.0,61349.0,0.26944727]
[1719488356227,1.1277838,61350.0,61349.0,0.26183078]
[1719488356557,1.4537818,61350.0,61349.0,0.26183078]
[1719488356771,1.4537818,61350.0,61349.0,0.24783078]
[1719488357460,1.4537818,61350.0,61349.0,0.26183078]
[1719488357701,1.4537818,61350.0,61349.0,0.24783078]
[1719488357911,1.4537818,61350.0,61349.0,0.0994918]
[1719488361032,1.69778565,61350.0,61349.0,0.0994918]
[1719488361876,2.02378365,61350.0,61349.0,0.0994918]
[1719488362078,2.1234798,61350.0,61349.0,0.0994918]
[1719488362325,1.79778565,61350.0,61349.0,0.0994918]
[1719488362496,2.12378365,61350.0,61349.0,0.0994918]
[1719488362862,2.12378365,61350.0,61349.0,0.0854918]
[1719488363071,2.1234798,61350.0,61349.0,0.0854918]
[1719488363288,2.0134798,61350.0,61349.0,0.0854918]
[1719488363922,2.0134798,61350.0,61349.0,0.0714918]
[1719488364262,2.0134798,61350.0,61349.0,0.0854918]
[1719488364462,1.70891298,61350.0,61349.0,0.0854918]
[1719488365298,1.57521298,61350.0,61349.0,0.0854918]
[1719488365699,1.24921498,61350.0,61349.0,0.0854918]
[1719488366189,1.57521298,61350.0,61349.0,0.0854918]
[1719488366417,1.24921498,61350.0,61349.0,0.0994918]
[1719488366911,1.24951883,61350.0,61349.0,0.0994918]
[1719488367043,1.24921498,61350.0,61349.0,0.0994918]
[1719488367244,1.57551683,61350.0,61349.0,0.0994918]
[1719488368654,1.94684672,61350.0,61349.0,0.0994918]
[1719488368921,1.82471683,61350.0,61349.0,0.0994918]
[1719488369126,2.15071483,61350.0,61349.0,0.0994918]
[1719488369340,2.17071483,61350.0,61349.0,0.0994918]
[1719488369535,3.09814883,61350.0,61349.0,0.0854918]
[1719488369736,3.09814883,61350.0,61349.0,0.0714918]
[1719488369737,3.07814883,61350.0,61349.0,0.0714918]
[1719488369889,3.07814883,61350.0,61349.0,0.0804918]
[1719488370090,3.07814883,61350.0,61349.0,0.0894918]
[1719488370490,3.07814883,61350.0,61349.0,0.0804918]
[1719488370697,3.07814883,61350.0,61349.0,0.0814918]
[1719488371358,3.07814883,61350.0,61349.0,0.0714918]
[1719488371737,3.07814883,61350.0,61349.0,0.0724918]
[1719488372180,3.07814883,61350.0,61349.0,0.0714918]
[1719488372537,3.07814883,61350.0,61349.0,0.0744918]
[1719488372962,3.07814883,61350.0,61349.0,0.0774918]
[1719488373480,3.07814883,61350.0,61349.0,0.0744918]
[1719488373944,3.07814883,61350.0,61349.0,0.006924]
[1719488373945,3.24048254,61350.0,61349.0,0.006924]
[1719488374349,3.38712304,61350.0,61349.0,0.006924]
[1719488374547,3.38712304,61350.0,61349.0,0.0774918]
[1719488374817,3.31988933,61350.0,61349.0,0.006924]
[1719488375456,3.33988933,61350.0,61349.0,0.006924]
[1719488375609,3.62494733,61350.0,61349.0,0.006924]
[1719488375943,3.45830683,61350.0,61349.0,0.003924]
[1719488376155,3.58509083,61350.0,61349.0,0.006924]
[1719488376324,3.57693341,61350.0,61349.0,0.006924]
[1719488376654,3.57693341,61350.0,61349.0,0.003924]
[1719488376884,3.7236012,61350.0,61349.0,0.003924]
[1719488377056,3.7236012,61350.0,61349.0,0.006924]
[1719488377227,3.72359772,61350.0,61349.0,0.006924]
[1719488377424,3.72359954,61350.0,61349.0,0.006924]
[1719488378981,3.67905354,61350.0,61349.0,0.006924]
[1719488380064,3.39389183,61350.0,61349.0,0.006924]
[1719488380227,3.54055177,61350.0,61349.0,0.006924]
[1719488380887,3.5661173,61350.0,61349.0,0.006924]
[1719488381087,3.5502673,61350.0,61349.0,0.006924]
[1719488381880,3.2059673,61350.0,61349.0,0.0774918]
[1719488382080,3.2385673,61350.0,61349.0,0.0774918]
[1719488383333,3.23856433,61350.0,61349.0,0.0774918]
[1719488383535,3.74689604,61350.0,61349.0,0.006924]
[1719488383762,3.84943907,61350.0,61349.0,0.006924]
[1719488384538,3.86638494,61350.0,61349.0,0.003924]
[1719488384920,3.86638494,61350.0,61349.0,0.001924]
[1719488385130,3.86638494,61350.0,61349.0,0.002924]
[1719488385663,3.86638494,61350.0,61349.0,0.001924]
[1719488385664,3.86538494,61350.0,61349.0,0.001924]
[1719488385864,3.86638494,61350.0,61349.0,0.001924]
[1719488386207,3.86638494,61350.0,61349.0,0.000924]
[1719488386466,3.84943907,61350.0,61349.0,0.000924]
[1719488386767,3.85043907,61350.0,61349.0,0.000924]
[1719488387172,4.01277805,61350.0,61349.0,0.000924]
[1719488387920,4.33877605,61350.0,61349.0,0.000924]
[1719488388117,4.01277805,61350.0,61349.0,0.000924]
[1719488389174,4.17760271,61350.0,61349.0,0.000924]
[1719488389380,4.50360071,61350.0,61349.0,0.000924]
[1719488389580,4.17760271,61350.0,61349.0,0.000924]
[1719488389779,8.15787571,61350.0,61349.0,0.000924]
[1719488389954,8.48387371,61350.0,61349.0,0.000924]
[1719488390583,8.68387371,61350.0,61349.0,0.000924]
[1719488390939,2.91549205,61345.0,61344.0,1e-06]
[1719488391109,0.75597985,61340.0,61339.0,0.000924]
[1719488391321,7.46762283,61340.0,61339.0,0.000924]
[1719488391725,7.99367383,61340.0,61339.0,0.000924]
[1719488391884,8.15600754,61340.0,61339.0,0.000924]
[1719488392302,8.1729532,61340.0,61339.0,0.000924]
[1719488392807,8.31785696,61340.0,61339.0,0.001924]
[1719488393195,8.31785695,61340.0,61339.0,0.001924]
[1719488393799,8.32085695,61340.0,61339.0,0.002924]
[1719488394242,8.48550747,61340.0,61339.0,0.002924]
[1719488395972,8.46852573,61340.0,61339.0,0.002924]
[1719488396172,8.30390754,61340.0,61339.0,0.002924]
[1719488397479,1.46784385,61327.0,61326.0,0.4732]
[1719488397796,1.46784385,61327.0,61325.0,0.0705678]
[1719488397797,0.16336585,61326.0,61325.0,0.0705678]
[1719488398001,2.64631785,61326.0,61325.0,0.0705678]
[1719488398302,1.46791585,61324.0,61323.0,0.0705678]
[1719488398510,2.76785485,61324.0,61323.0,0.0705678]
[1719488399078,2.78785485,61324.0,61323.0,0.0705678]
[1719488399587,2.78785485,61324.0,61323.0,0.0825678]
[1719488399754,3.27632456,61324.0,61323.0,0.012]
[1719488399949,3.27632456,61324.0,61321.0,0.0705678]
[1719488399950,1.48796485,61322.0,61321.0,0.0705678]
[1719488400150,0.00030385,61319.0,61318.0,0.0705678]
[1719488400378,2.57768285,61319.0,61318.0,0.0705678]
[1719488400576,3.96819485,61319.0,61318.0,0.0705678]
[1719488400774,3.96931424,61319.0,61318.0,0.0705678]
[1719488401131,4.15484524,61319.0,61318.0,0.0705678]
[1719488401333,4.15484524,61319.0,61316.0,0.0705678]
[1719488401334,1.81422785,61318.0,61316.0,0.0705678]
[1719488401489,4.44009585,61318.0,61316.0,0.0705678]
[1719488401668,4.52710843,61318.0,61316.0,0.0705678]
[1719488401870,4.50710843,61318.0,61316.0,0.0705678]
[1719488402079,4.52710843,61318.0,61316.0,0.0705678]
[1719488402884,4.42009585,61318.0,61316.0,0.0705678]
[1719488403084,4.20491185,61318.0,61316.0,0.0705678]
[1719488403488,4.20591185,61318.0,61317.0,0.003924]
[1719488403712,4.20691185,61318.0,61317.0,0.014924]
[1719488403941,4.206608,61318.0,61317.0,0.014924]
[1719488404110,4.205608,61318.0,61317.0,0.003924]
[1719488404316,3.42577456,61318.0,61317.0,0.003924]
[1719488404513,3.42577456,61318.0,61317.0,0.008924]
[1719488404715,3.66597456,61318.0,61317.0,0.008924]
[1719488406054,3.66497456,61318.0,61317.0,0.005924]
[1719488406254,3.66597456,61318.0,61317.0,0.005924]
[1719488406456,3.75194256,61318.0,61317.0,0.000924]
[1719488406795,3.75394256,61318.0,61317.0,0.000924]
[1719488407202,3.75194256,61318.0,61317.0,0.000924]
[1719488407663,2.40472956,61318.0,61317.0,0.000924]
[1719488408222,6.50236256,61318.0,61317.0,0.000924]
[1719488408422,5.97115456,61318.0,61317.0,0.000924]
[1719488408643,5.76775556,61318.0,61317.0,0.000924]
[1719488410161,5.59726185,61318.0,61317.0,0.000924]
[1719488410682,5.6394505,61318.0,61317.0,0.000924]
[1719488412518,5.5896895,61318.0,61317.0,0.000924]
[1719488412720,5.6849895,61318.0,61317.0,0.000924]
[1719488412948,5.7503455,61318.0,61317.0,0.000924]
[1719488414389,5.91267921,61318.0,61317.0,0.000924]
[1719488416819,5.7503455,61318.0,61317.0,0.000924]
[1719488417830,5.91268448,61318.0,61317.0,0.000924]
[1719488417999,1.81451885,61308.0,61302.0,0.0705678]
[1719488418207,4.57361885,61308.0,61302.0,0.0705678]
[1719488418412,4.85412385,61308.0,61302.0,0.0705678]
[1719488419020,4.85412385,61308.0,61303.0,0.0705678]
[1719488419249,4.13261785,61308.0,61307.0,0.241224]
[1719488419799,4.14061785,61308.0,61307.0,0.241224]
[1719488420025,4.13261785,61308.0,61307.0,0.241224]
[1719488420352,3.50941885,61308.0,61307.0,0.241224]
[1719488420582,3.52541885,61308.0,61307.0,0.242224]
[1719488420991,3.51741885,61308.0,61307.0,0.241224]
[1719488421849,3.50941885,61308.0,61307.0,0.241224]
[1719488422172,3.51741885,61308.0,61307.0,0.241224]
[1719488422369,3.15412885,61308.0,61307.0,0.241224]
[1719488422629,3.15412885,61308.0,61307.0,0.3127918]
[1719488422630,1.257773,61308.0,61307.0,0.3127918]
[1719488422828,1.353073,61308.0,61307.0,0.3127918]
[1719488423238,1.257773,61308.0,61307.0,0.3127918]
[1719488423387,1.249773,61308.0,61307.0,0.3117918]
[1719488423776,1.241773,61308.0,61307.0,0.3117918]
[1719488423975,1.241773,61308.0,61307.0,0.47413078]
[1719488423976,0.915552,61308.0,61307.0,0.47413078]
[1719488424214,0.489268,61316.0,61315.0,0.0705678]
[1719488424411,0.489268,61316.0,61315.0,0.47770678]
[1719488424663,0.815447,61316.0,61315.0,0.47770678]
[1719488424835,0.815447,61316.0,61315.0,0.48485061]
[1719488424988,0.815447,61316.0,61315.0,0.47770678]
[1719488425191,1.58230034,61316.0,61315.0,0.32251163]
[1719488425509,1.58230034,61316.0,61315.0,0.3153678]
[1719488425708,1.68230034,61316.0,61315.0,0.3153678]
[1719488426186,1.68330034,61316.0,61315.0,0.3203678]
[1719488426589,1.68430034,61316.0,61315.0,0.3263678]
[1719488427810,1.57010885,61316.0,61315.0,0.3263678]
[1719488430618,1.57010885,61316.0,61315.0,0.32603986]
[1719488431594,1.68310885,61316.0,61315.0,0.32603986]
[1719488432053,1.68310885,61316.0,61315.0,0.011]
[1719488432244,1.70310885,61316.0,61315.0,0.011]
[1719488432444,1.68310885,61316.0,61315.0,0.011]
[1719488433206,2.008984,61316.0,61315.0,0.011]
[1719488433547,2.02928785,61316.0,61315.0,0.011]
[1719488433748,2.04755522,61316.0,61315.0,0.011]
[1719488434333,2.28865522,61316.0,61315.0,0.011]
[1719488434586,2.57311384,61316.0,61315.0,0.011]
[1719488434925,2.7771732,61316.0,61315.0,0.011]